Cogmind - Beta 9.1 *** ADVENTURER MODE // 2019.11.09 @ 02:48:26 Player: Suslik Result: Destroyed by B-75 Beast with Heavy Machine Gun Performance ------------- Evolutions (2) 1000 Regions Visited (8) 1600 Robots Destroyed (67) 335 Value Destroyed (2680) 2680 Prototype IDs (0) 0 Alien Tech Used (0) 0 Bonus (825) 825 TOTAL SCORE: 6440 Bonus ------- High Alert Combat Kills 55 Follower Combat Kills 118 Entered Garrisons 400 Used RIF Installer 500 Friendly Fire -248 Cogmind --------- Core Integrity 0/550 Matter 300/300 Energy 21/100 System Corruption 4% Temperature Cool (109) Location -8/Garrison Parts ------- Power (1) Propulsion (3) Light Treads Utility (5) Large Storage Unit High-capacity Storage Unit Relay Coupler [Grunt] (2) Relay Coupler [Sentry] (2) Weapon (2) Shock Rifle Inventory (18) Improved Ion Engine Light Treads High-capacity Matter Pod (200) Relay Coupler [NC] (26) Relay Coupler [NC] (35) Relay Coupler [NC] (37) Relay Coupler [Grunt] (38) Relay Coupler [Grunt] (28) Relay Coupler [Sentry] (28) Relay Coupler [Sentry] (26) Relay Coupler [Hunter] (19) Beam Rifle Grenade Launcher Grenade Launcher Datajack Makeshift Spear Shock Trap Peak State ------------ Power Ion Engine Propulsion Light Treads Light Treads Light Treads Utility Large Storage Unit High-capacity Storage Unit Relay Coupler [Grunt] Relay Coupler [Hunter] Relay Coupler [Hunter] Weapon Beam Rifle Makeshift Spear Inventory Light Ion Engine Light Treads Compact Wheel High-capacity Matter Pod Makeshift Terrain Scanner Relay Coupler [NC] Relay Coupler [NC] Relay Coupler [Grunt] Relay Coupler [Grunt] Relay Coupler [Sentry] Relay Coupler [Sentry] Particle Gun Beam Cannon Grenade Launcher Grenade Launcher Datajack Shock Trap [Rating: 28] Favorites ----------- Power Ion Engine Engine Ion Engine Power Core Light Nuclear Core Propulsion Light Treads Treads Light Treads Leg Aluminum Leg Wheel Compact Wheel Utility High-capacity Storage Unit Device Makeshift Terrain Scanner Storage High-capacity Storage Unit Hackware Relay Coupler [Hunter] Protection Light Armor Plating Weapon Light Cannon Energy Gun EM Pulse Gun Energy Cannon Beam Cannon Ballistic Gun Assault Rifle Ballistic Cannon Light Cannon Launcher Grenade Launcher Slashing Weapon Mining Claw Piercing Weapon Makeshift Spear Special Melee Weapon Datajack Build | -11 -10 -10 -10 -9 -8 -8 -8 -8 ------- Run | Scr Mat Min Exi Min Mat Gar Mat Gar Slots Evolved 4 | . . . . . 4 . . . Power . | . . . . . . . . . Propulsion 1 | . . . . . 1 . . . Utility 3 | . . . . . 3 . . . Weapon . | . . . . . . . . . Parts Attached 71 | . 12 10 2 2 9 14 6 16 Power 5 | . 1 1 1 . . 1 . 1 Engine 4 | . 1 1 . . . 1 . 1 Core 1 | . . . 1 . . . . . Reactor . | . . . . . . . . . Propulsion 15 | . 5 2 . . 2 3 . 3 Treads 13 | . 5 2 . . 2 2 . 2 Leg 1 | . . . . . . 1 . . Wheel 1 | . . . . . . . . 1 Hover . | . . . . . . . . . Flight . | . . . . . . . . . Utility 13 | . 2 . . . 4 3 2 2 Device 3 | . . . . . 2 . 1 . Storage 2 | . 2 . . . . . . . Processor . | . . . . . . . . . Hackware 6 | . . . . . . 3 1 2 Protection 2 | . . . . . 2 . . . Artifact . | . . . . . . . . . Weapon 38 | . 4 7 1 2 3 7 4 10 Energy Gun 8 | . 2 . . . . 2 2 2 Energy Cannon 1 | . . . . . 1 . . . Ballistic Gun 7 | . . 2 . 1 1 . 1 2 Ballistic Cannon 3 | . 2 1 . . . . . . Launcher 7 | . . 3 . . 1 2 . 1 Special Weapon . | . . . . . . . . . Impact Weapon . | . . . . . . . . . Slashing Weapon 1 | . . 1 . . . . . . Piercing Weapon 7 | . . . 1 1 . 3 . 2 Special Melee Weapon 4 | . . . . . . . 1 3 Unidentified Prototypes . | . . . . . . . . . Parts Lost 19 | . . 2 . . 2 6 . 9 Power 4 | . . 1 . . . 1 . 2 Propulsion 7 | . . . . . 1 1 . 5 Utility 4 | . . . . . . 3 . 1 Weapon 4 | . . 1 . . 1 1 . 1 Highest Loss Streak 5 | . . 2 . . 2 5 . 4 Average Slot Usage (%) 95 | . 99 100 100 100 74 85 99 89 Engine 11 | . 14 14 12 . . 8 9 7 Core 1 | . . . 1 14 9 . . . Treads 26 | . 27 28 28 28 20 21 27 23 Leg 1 | . . . . . . 4 . . Storage 24 | . 27 28 28 28 18 18 18 18 Hackware 4 | . . . . . . 13 21 14 Energy Gun 6 | . 14 10 . . . 2 9 1 Ballistic Gun 4 | . . 10 . 2 3 5 4 8 Ballistic Cannon 7 | . 13 5 14 14 6 . . . Slashing Weapon 1 | . . . 5 . . . . . Piercing Weapon 3 | . . . 8 11 4 4 1 5 Naked Turns . | . . . . . . . . . Heaviest Build 65 | 13 58 58 58 58 65 65 60 60 Greatest Support 60 | 20 40 40 40 40 60 60 60 60 Greatest Overweight (x) 3 | . 2 1 1 1 1 1 . 3 Average Overweight (x) . | . . 1 1 1 1 . . . Largest Inventory Capacity 18 | . 18 18 18 18 18 18 18 18 Average Capacity 16 | . 13 18 18 18 18 18 18 18 Most Carried 18 | . 14 18 18 18 18 18 18 18 Average Carried 14 | . 7 16 18 18 17 17 17 17 Final Capacity 18 | 6 18 18 18 18 18 18 18 18 Final Carried 18 | 6 14 18 18 18 17 18 17 17 Class Distribution -------------------- 82% | Mutant 16% | Bothacker-Mutant Dominant Class ---------------- Mutant | -10/Materials Mutant | -10/Mines Mutant | -10/Exiles Mutant | -9/Mines Mutant | -8/Materials Mutant | -8/Garrison Bothacker-Mutant | -8/Materials Bothacker-Mutant | -8/Garrison Resources | -11 -10 -10 -10 -9 -8 -8 -8 -8 ----------- Run | Scr Mat Min Exi Min Mat Gar Mat Gar Matter Collected 1689 | 168 491 235 20 65 52 320 . 338 Remotely . | . . . . . . . . . Salvage Created 1993 | . 647 218 67 152 158 559 26 166 Parts 121 | . 52 19 3 9 6 21 4 7 Haulers Intercepted 2 | . 2 . . . . . . . Recyclers Shooed . | . . . . . . . . . Parts Field Recycled . | . . . . . . . . . Retrieved Matter . | . . . . . . . . . Parts Self-Destructed . | . . . . . . . . . Prevented . | . . . . . . . . . Kills | -11 -10 -10 -10 -9 -8 -8 -8 -8 ------- Run | Scr Mat Min Exi Min Mat Gar Mat Gar Combat Hostiles Destroyed 57 | . 17 13 . 4 4 15 . 4 Melee 9 | . . . . 3 . 6 . . Guns 15 | . 9 2 . 1 1 1 . 1 Cannons 11 | . 8 2 . . 1 . . . AOE 22 | . . 9 . . 2 8 . 3 Classes Destroyed 10 | . 6 2 . . . 1 . 1 Worker 1 | . 1 . . . . . . . Tunneler 1 | . . 1 . . . . . . Hauler 2 | . 2 . . . . . . . Mechanic 1 | . 1 . . . . . . . Watcher 4 | . 3 . . . . . 1 . Swarmer 21 | . 9 9 . . . 3 . . Grunt 30 | . 8 2 . 4 3 10 . 3 Duelist 2 | . . . . . . . . 2 Sentry 4 | . . 2 . . 1 1 . . Hunter 1 | . . . . . . 1 . . Best Kill Streak 4 | . 4 4 . 3 4 4 1 2 Combat Bots Only 4 | . 4 3 . 3 4 4 . 2 Max Kills in Single Turn 3 | . 1 3 . 1 1 3 1 1 Gunslinging . | . . . . . . . . . Exploded 3 | . . 3 . . 1 3 . 1 Melee 1 | . . . . 1 . 1 . . Uniques/NPCs Destroyed . | . . . . . . . . . Combat | -11 -10 -10 -10 -9 -8 -8 -8 -8 -------- Run | Scr Mat Min Exi Min Mat Gar Mat Gar Damage Taken 3041 | . 223 287 . 59 635 685 203 949 Core 665 | . 33 68 . . 152 130 69 213 Absorbed by Shields . | . . . . . . . . . Core Remaining (%) 79 | 100 . . . 59 . . . . Volleys Fired 118 | . 47 15 . 5 9 22 1 19 Largest 2 | . 2 2 . 2 2 2 2 2 Hottest 121 | . 75 75 . 55 80 80 121 73 Shots Fired 205 | . 94 24 . 10 14 30 2 31 Gun 109 | . 47 11 . 5 5 13 2 26 Cannon 69 | . 47 7 . 5 5 5 . . Launcher 27 | . . 6 . . 4 12 . 5 Special . | . . . . . . . . . Kinetic 101 | . 47 14 . 10 7 10 . 13 Thermal 13 | . . . . . 3 8 2 . Explosive 27 | . . 6 . . 4 12 . 5 Electromagnetic 64 | . 47 4 . . . . . 13 Robot Hit Streak 14 | . 11 13 . 8 8 13 6 14 Robot Miss Streak 3 | . 3 1 . 1 1 1 . 1 Penetration Max . | . . . . . . . . . Secondary Targets . | . . . . . . . . . Shots Hit Robots 173 | . 62 14 3 12 10 32 7 33 Core Hits 108 | . 26 19 2 7 11 28 2 13 Critical Hits 2 | . 1 1 . . . . . . Critical Kills . | . . . . . . . . . Critical Parts Destroyed 2 | . 1 1 . . . . . . Melee Attacks 69 | . . 9 18 8 . 20 5 9 Impact . | . . . . . . . . . Slashing 9 | . . 9 . . . . . . Piercing 49 | . . . 18 8 . 20 . 3 Sneak Attacks 3 | . . . . . . 1 1 1 Combat Hostiles 1 | . . . . . . 1 . . Follow-up Attacks . | . . . . . . . . . Damage Inflicted 4930 | . 918 971 293 224 400 1224 32 868 Guns 1182 | . 479 132 . 62 50 106 32 321 Cannons 759 | . 439 112 . 48 73 87 . . Explosions 1980 | . . 700 . . 277 559 . 444 Melee 982 | . . . 293 114 . 472 . 103 Ramming 27 | . . 27 . . . . . . Kinetic 1089 | . 439 191 . 110 89 77 . 183 Thermal 564 | . . 253 . . 34 116 32 129 Explosive 1598 | . . 447 . . 277 559 . 315 Electromagnetic 670 | . 479 53 . . . . . 138 Impact . | . . . . . . . . . Slashing . | . . . . . . . . . Piercing 982 | . . . 293 114 . 472 . 103 Highest Corruption 4 | . . . . . 3 3 4 4 Average Corruption 3 | . . . . . 3 3 3 4 Corruption Purged . | . . . . . . . . . Effects 35 | . . . . . . 19 4 12 Message Errors 12 | . . . . . . 6 3 3 Matter Fused 6 | . . . . . . 4 1 1 Heat Flow Errors 5 | . . . . . . 4 . 1 Energy Discharges 1 | . . . . . . . . 1 Data Loss (minor) 6 | . . . . . . 4 . 2 Targeting Errors 4 | . . . . . . 1 . 3 Weapon Failures 1 | . . . . . . . . 1 Overload Shots . | . . . . . . . . . Overflow Damage 55 | . . 3 50 . . 2 . . Projectiles . | . . . . . . . . . Explosions 5 | . . 3 . . . 2 . . Melee 50 | . . . 50 . . . . . Knockbacks 4 | . 2 2 . . . . . . Impact 1 | . . 1 . . . . . . Kinetic 3 | . 2 1 . . . . . . Secondary . | . . . . . . . . . Self-Inflicted Damage 93 | . . 54 . . 22 . . 17 Shots 6 | . . 2 . . 2 . . 2 Rammed 3 | . . 3 . . . . . . Targets Rammed 3 | . . 3 . . . . . . Kicked . | . . . . . . . . . Crushed . | . . . . . . . . . Highest Temperature 231 | . 111 30 . . 54 231 42 194 Average Temperature 46 | . 37 14 . . 18 82 25 121 Received Heat Transfer 1095 | . 63 63 . 42 135 459 81 252 Siege Activations . | . . . . . . . . . Robots Corrupted . | . . . . . . . . . Combat Hostiles . | . . . . . . . . . Parts Fried 2 | . 1 . . . . 1 . . Impact Corruptions . | . . . . . . . . . Robots Melted . | . . . . . . . . . Combat Hostiles . | . . . . . . . . . Parts Melted 2 | . . 1 . 1 . . . . Heat Transferred 807 | . . 300 . . 74 259 74 100 Parts Sabotaged . | . . . . . . . . . Parts Stolen . | . . . . . . . . . Parts Stripped . | . . . . . . . . . Power Chain Reactions 3 | . . 1 . . . . . 2 Missiles Intercepted . | . . . . . . . . . Alert | -11 -10 -10 -10 -9 -8 -8 -8 -8 ------- Run | Scr Mat Min Exi Min Mat Gar Mat Gar Peak Influence 618 | . 247 148 . 154 158 618 281 258 Average Influence 162 | . 91 44 . 56 85 385 266 185 Maximum Alert Level 2 | . 1 . . . . 2 1 1 Low Security (%) 67 | . . . . . . . . . Level 1 20 | . . . . . . . . . Level 2 12 | . . . . . . . . . Level 3 . | . . . . . . . . . Level 4 . | . . . . . . . . . Level 5 . | . . . . . . . . . High Security . | . . . . . . . . . Max Security . | . . . . . . . . . Squads Dispatched 5 | . 2 . . . 1 . 2 . Investigation 2 | . 2 . . . . . . . Extermination . | . . . . . . . . . Reinforcement 1 | . . . . . . . 1 . Assault . | . . . . . . . . . Garrison 2 | . . . . . 1 . 1 . Intercept . | . . . . . . . . . Construction Impeded . | . . . . . . . . . Haulers Reinforced . | . . . . . . . . . Stealth | -11 -10 -10 -10 -9 -8 -8 -8 -8 --------- Run | Scr Mat Min Exi Min Mat Gar Mat Gar Distress Signals 4 | . 3 . . . 1 . . . Communications Jammed . | . . . . . . . . . Distress Signals . | . . . . . . . . . Times Spotted 84 | . 29 13 . 7 6 11 6 12 Peak Tracking Total 6 | . 5 3 . 2 5 6 4 6 Tactical Retreats 4 | . 1 . . . . 2 . 1 Traps | -11 -10 -10 -10 -9 -8 -8 -8 -8 ------- Run | Scr Mat Min Exi Min Mat Gar Mat Gar Traps Triggered 11 | . 2 . . . . 7 2 . Indirectly . | . . . . . . . . . Trap Hack Attempts . | . . . . . . . . . Triggered . | . . . . . . . . . Disarmed . | . . . . . . . . . Reprogrammed . | . . . . . . . . . Reused 1 | . . . . . . 1 . . Traps Extracted . | . . . . . . . . . Installed 2 | . . . . . . 2 . . Triggered 3 | . . . . 2 . 1 . . Machines | -11 -10 -10 -10 -9 -8 -8 -8 -8 ---------- Run | Scr Mat Min Exi Min Mat Gar Mat Gar Machines Disabled 7 | . 2 1 . . . 3 . 1 Max in Single Turn 1 | . 1 1 . . . 1 . 1 Garrison Relay 4 | . . . . . . 3 . 1 Machines Sabotaged . | . . . . . . . . . Garrisons Compromised . | . . . . . . . . . Overloaded Fab Kills . | . . . . . . . . . Fab Network Shutdowns . | . . . . . . . . . Hacking | -11 -10 -10 -10 -9 -8 -8 -8 -8 --------- Run | Scr Mat Min Exi Min Mat Gar Mat Gar Machines Accessed 10 | . 4 . 4 . 1 . 1 . Terminals 3 | . 3 . . . . . . . Fabricators . | . . . . . . . . . Repair Stations . | . . . . . . . . . Recycling Units 1 | . 1 . . . . . . . Scanalyzers . | . . . . . . . . . Garrison Access 2 | . . . . . 1 . 1 . Total Hacks 57 | . 7 . 48 . 1 . 1 . Successful 56 | . 6 . 48 . 1 . 1 . Failed 1 | . 1 . . . . . . . Catastrophic . | . . . . . . . . . Database Lockouts . | . . . . . . . . . Manual 19 | . 8 . 11 . . . . . Terminals 6 | . 6 . . . . . . . Fabricators . | . . . . . . . . . Repair Stations . | . . . . . . . . . Recycling Units 1 | . 1 . . . . . . . Scanalyzers . | . . . . . . . . . Garrison Access 2 | . . . . . 1 . 1 . Terminal Hacks 53 | . 5 . 48 . . . . . Record 48 | . . . 48 . . . . . Part Schematic 1 | . 1 . . . . . . . Transport Status 3 | . 3 . . . . . . . Hauler Manifests 1 | . 1 . . . . . . . Fabricator Hacks . | . . . . . . . . . Repair Station Hacks . | . . . . . . . . . Recycling Unit Hacks . | . . . . . . . . . Scanalyzer . | . . . . . . . . . Garrison Access Hacks 2 | . . . . . 1 . 1 . Unlock Access 2 | . . . . . 1 . 1 . Unauthorized Hacks 2 | . 2 . . . . . . . Terminals . | . . . . . . . . . Fabricators . | . . . . . . . . . Repair Stations . | . . . . . . . . . Recycling Units 1 | . 1 . . . . . . . Tunnel 1 | . 1 . . . . . . . Scanalyzers . | . . . . . . . . . Garrison Access . | . . . . . . . . . Data Cores Recovered . | . . . . . . . . . Used . | . . . . . . . . . Hacking Detections 3 | . 2 . . . 1 . . . Full Trace Events 1 | . 1 . . . . . . . Feedback Events . | . . . . . . . . . Feedback Blocked . | . . . . . . . . . Robot Schematics Acquired . | . . . . . . . . . Robots Built . | . . . . . . . . . Matter . | . . . . . . . . . Time . | . . . . . . . . . Total Robot Build Rating . | . . . . . . . . . Part Schematics Acquired 1 | . 1 . . . . . . . Parts Built . | . . . . . . . . . Matter . | . . . . . . . . . Time . | . . . . . . . . . Total Part Build Rating . | . . . . . . . . . Parts Repaired . | . . . . . . . . . Time . | . . . . . . . . . Parts Recycled . | . . . . . . . . . Recycled Matter . | . . . . . . . . . Retrieved Matter . | . . . . . . . . . Retrieved Components . | . . . . . . . . . Parts Scanalyzed . | . . . . . . . . . Part Schematics Acquired . | . . . . . . . . . Parts Damaged . | . . . . . . . . . Bothacking | -11 -10 -10 -10 -9 -8 -8 -8 -8 ------------ Run | Scr Mat Min Exi Min Mat Gar Mat Gar Used RIF Installer 1 | . . . . . . 1 . . Robots Hacked 10 | . . . . . . . 4 6 Non-combat . | . . . . . . . . . Combat 10 | . . . . . . . 4 6 Robot Hacks Applied 10 | . . . . . . . 4 6 overwrite_iff 1 | . . . . . . . 1 . formatsys_high 9 | . . . . . . . 3 6 Relay Couplers Released 16 | . . . . . . 12 . 4 Machine Destruction 16 | . . . . . . 12 . 4 Attached 6 | . . . . . . 3 1 2 Robots Rewired . | . . . . . . . . . Allies Hacked . | . . . . . . . . . Hacks Repelled . | . . . . . . . . . Allies | -11 -10 -10 -10 -9 -8 -8 -8 -8 -------- Run | Scr Mat Min Exi Min Mat Gar Mat Gar Total Allies 13 | . . . . 3 . . 4 6 Largest Group 3 | . . . . 3 . . 2 3 Highest-Rated Group 47 | . . . . 40 . . 32 47 Highest-Rated Ally 29 | . . . . 16 . . 16 29 Total Orders . | . . . . . . . . . Ally Attacks 74 | . . . . 14 . . 13 47 Total Damage 1076 | . . . . 152 . . 219 705 Kills 4 | . . . . 3 . . . 1 Allies Corrupted . | . . . . . . . . . Allies Melted . | . . . . . . . . . Intel | -11 -10 -10 -10 -9 -8 -8 -8 -8 ------- Run | Scr Mat Min Exi Min Mat Gar Mat Gar Robot Analysis Total . | . . . . . . . . . Derelict Logs Recovered 3 | . . 3 . . . . . . Drone Launches . | . . . . . . . . . Drone Recoveries . | . . . . . . . . . Exploration | -11 -10 -10 -10 -9 -8 -8 -8 -8 ------------- Run | Scr Mat Min Exi Min Mat Gar Mat Gar Turns Passed 6248 | . 1504 1354 1226 205 120 1205 195 439 Spaces Moved 3099 | 1 735 700 659 94 36 573 100 201 Core . | . . . . . . . . . Treads 3065 | . 712 700 659 94 36 573 100 191 Legs 24 | 1 23 . . . . . . . Wheels 10 | . . . . . . . . 10 Hover . | . . . . . . . . . Flight . | . . . . . . . . . Fastest Speed 120 | 120 120 180 180 180 180 160 160 130 Average Speed 176 | 120 177 180 180 180 180 172 160 163 Slowest Speed 200 | 120 200 180 180 180 180 180 160 200 Overloaded Moves . | . . . . . . . . . Propulsion Burnouts . | . . . . . . . . . Robots Hopped . | . . . . . . . . . Cave-ins Triggered 1 | . . . . . 1 . . . Exploration Rate (%) 47 | 2 85 98 91 19 5 76 17 36 Regions Visited 8 Branch Regions 3 Pre-discovered Areas 4 | . 1 1 1 1 . . . . Known Exits Taken 2 | . . . . . 1 . 1 . Unknown Exits Taken 5 | 1 1 1 1 1 . . . . Scrap Searched 2 | . . 2 . . . . . . Spaces Dug 30 | . . 20 3 . . 3 . 4 Terrain Destroyed 125 | . . 56 3 . 29 17 . 20 Melee 6 | . . 3 3 . . . . . Projectile . | . . . . . . . . . AOE 119 | . . 53 . . 29 17 . 20 Actions | -11 -10 -10 -10 -9 -8 -8 -8 -8 --------- Run | Scr Mat Min Exi Min Mat Gar Mat Gar Total 3584 | . 837 748 682 111 75 737 128 266 Wait 148 | . 30 3 . 3 18 75 10 9 Move 3093 | . 734 699 658 93 36 572 100 201 Hop . | . . . . . . . . . Pick Up 34 | . 9 6 1 . 2 10 . 6 Fast Attach 22 | . 9 1 2 . 3 4 2 1 Attach 15 | . . 1 . . 4 3 2 5 Detach 5 | . 1 . . . 1 . 3 . Swap 34 | . 3 8 . 2 2 7 2 10 Drop 20 | . 4 3 3 . . 8 1 1 Fire 118 | . 47 15 . 5 9 22 1 19 Melee 69 | . . 9 18 8 . 20 5 9 Ram . | . . . . . . . . . Kick . | . . . . . . . . . Crush 3 | . . 3 . . . . . . Escape Stasis 14 | . . . . . . 14 . . Rewire 7 | . . . . . . . 2 5 Trap 2 | . . . . . . 2 . . Miscellaneous . | . . . . . . . . . Route ------- -11/Scrapyard -10/Materials (discovered 4 exits: [*Mat x2] / [*Min x2]) -10/Mines (discovered 3 exits: [*Mat x2] / *Exi) -10/Exiles -9/Mines -8/Materials (discovered 2 exits: Fac / Gar) -8/Garrison (discovered 3 exits: *Mat x3) -8/Materials (discovered 2 exits: *Fac / Gar) -8/Garrison History --------- Turn | Location | Event 1 | -11/Scrapyard | Discovered new exit (range 0) 1 | -11/Scrapyard | Entered Materials 72 | -10/Materials | Discovered new exit (range 5) 308 | -10/Materials | Build established: Mutant 351 | -10/Materials | Discovered new exit (range 8) 535 | -10/Materials | Discovered new exit (range 15) 748 | -10/Materials | Discovered new exit (range 16) 1505 | -10/Materials | Entered Mines 1684 | -10/Mines | Discovered new exit (range 11) 1727 | -10/Mines | Learned location of Zion (-6) 1736 | -10/Mines | Learned Materials emergency access door positions 1850 | -10/Mines | Deemed a non-threat by the Exiles lab entrance 1850 | -10/Mines | Discovered new exit (range 5) 2210 | -10/Mines | Found a hidden stash of uninstalled traps 2499 | -10/Mines | Learned 2 Materials zone layouts 2517 | -10/Mines | Discovered new exit (range 3) 2859 | -10/Mines | Entered Exiles 2859 | -10/Exiles | Found Exiles lab destroyed 3624 | -10/Exiles | Discovered new exit (range 14) 4085 | -10/Exiles | Entered Mines 4136 | -9/Mines | Assisted by bots powering up and referring to "LRC-V3" 4214 | -9/Mines | Excavation squad dispatched 4214 | -9/Mines | A large section of the Mines collapsed 4257 | -9/Mines | Discovered new exit (range 13) 4264 | -9/Mines | Learned location of Storage (-7) 4290 | -9/Mines | Entered Materials 4290 | -8/Materials | Evolved 4 slots: Propulsion x1, Utility x3 4291 | -8/Materials | Identified exit to Factory 4373 | -8/Materials | Garrison activated, responded to threat 4379 | -8/Materials | Crushed by falling debris 4410 | -8/Materials | Identified exit to Garrison 4410 | -8/Materials | Entered Garrison 4528 | -8/Garrison | Triggered checkpoint 4553 | -8/Garrison | Lost 5 parts (1p1n3u) 4623 | -8/Garrison | Discovered new exit (range 9) 4702 | -8/Garrison | Triggered checkpoint 4746 | -8/Garrison | Discovered new exit (range 10) 4793 | -8/Garrison | Triggered checkpoint 4803 | -8/Garrison | Core integrity fell below 50% 4879 | -8/Garrison | Discovered new exit (range 12) 4909 | -8/Garrison | Installed Relay Interface Framework 4970 | -8/Garrison | Triggered checkpoint 5003 | -8/Garrison | Garrison Relay disabled 5166 | -8/Garrison | Triggered checkpoint 5230 | -8/Garrison | Garrison Relay disabled 5366 | -8/Garrison | Triggered checkpoint 5506 | -8/Garrison | Garrison Relay disabled 5540 | -8/Garrison | Build established: Bothacker-Mutant 5615 | -8/Garrison | Entered Materials 5778 | -8/Materials | Garrison activated, responded to threat 5783 | -8/Materials | Discovered exit to Factory (range 15) 5810 | -8/Materials | Identified exit to Garrison 5810 | -8/Materials | Entered Garrison 5810 | -8/Garrison | Accompanied by 2 allies 5844 | -8/Garrison | Spotted B-75 Beast 5844 | -8/Garrison | Spotted B-75 Beast 5890 | -8/Garrison | Triggered checkpoint 5968 | -8/Garrison | Triggered checkpoint 6032 | -8/Garrison | Garrison Relay disabled 6183 | -8/Garrison | Core integrity fell below 20% 6189 | -8/Garrison | Lost 3 parts (2n1u) 6249 | -8/Garrison | Destroyed by B-75 Beast with Heavy Machine Gun Last Messages --------------- 06199_ Soldier 3a suffers critical hit. 06199_ Soldier 3a destroyed. 06205_ Jacked G-47 Trooper... >>formatsys_high Rerouting network defenses. Erasing system data. Installing primary routines, ETC: 6. 06207_ Reactivated Trooper 3d. 06209_ Trooper 3c destroyed. 06227_ System corrupted: Shock Rifle targeting data glitched. 06229_ Lgt. Ion Engine destroyed. 06230_ System corrupted: Hvy. Assault Rifle targeting data glitched. 06234_ Hvy. Assault Rifle destroyed. 06234_ Lgt. Treads destroyed. 06238_ System corrupted: Shock Rifle targeting data glitched. 06238_ Chain reaction triggered in Rnf. Deuterium Engine. 06239_ Com. Wheel destroyed. 06241_ System corrupted: Heat flow error (+194). 06244_ Chain reaction triggered in Rnf. Deuterium Engine. 06246_ Acquired 21 matter. Map ----- +----------------------------------------------------+ | ?????????????????????????????????????????????????? | | ?????????????????????????????????????????????????? | | ?????????????????????????????????????????????????? | | ?????????????????????????????????????????????????? | | ?????????????????????????????????????????????????? | | ?????????????????????????????????????????????????? | | ?????????????????????????????????????????????????? | | ?????????????????????????????????????????????????? | | ????????????????????????####?????????????????????? | | ???????????????????? ??? #????????????????????? | | ??????????????????? ?? ???????????????#????? | | ?????????????????? ?? ????????????????????? | | ??????????????? ??# ?# #????????????????????? | | ??????????????? ## ## #????????????????????? | | ?????????????? "????????????????????? | | ?????????????? "??????????#??????#??? | | ??????????????? "?#??????????????????? | | ????????????????? ? " #????#??????#??????? | | ?????????????# ???# ?# #????#??????#?????#??? | | ?????????????# ## ## ##################???? | | ?????????????# ????? | | ?????????????# ##???#????? | | ?????????????# =% BB ##?#??#???? | | ???????????????????""""##= BB ##+###^ #?#?????#?? | | ???????????????????????##*! ##?#?# #????????#? | | ??????????#?????????????#@%#?????### #???#?##??? | | ????????????????????????#g=#???#???# #?#??#?#?? | | ????????????????????????#! #???#???# ######??#?? | | ????????????????????????# #???? ??# ## ##???? | | ??????????????? ????????# ######### ##] ##### | | ????????????????????????# | | ????????????????????##??# [ | | ?????????????????????#??# ######### ########### | | ????????????????????????# #???##?## # # ##???#? | | ???????????#???????#????# #?#??##?# # ####### | | ???????????????????#?#### ##?#???## = # #?# ## | | ???????????#??????????!!# ##??????# ! # ### # | | ?????????????????????? !#?#??### | | ??????????????#? ????? !#??????# | | ??????????????????????? !#??#???# ## ### | | ?????????????????????? #??? ??# ## [#?### | | ??????????????????????? !#??????# ### ##???# | | ?????????????????????? !??????## ### #??#?# | | ?????????????????????? !#??????# #?# ##???# | | ????????????????#??????###"#???????# ### #????# | | ?????????????????????????# ##??#???# #?# ???? # | | ????????????????#???????## #?#?????# #?# #??###? | | ?????????????????????????# ###??#### #?# #?????? | | ??????????????????????#### ######??# #?# #?????? | | ??????????????????????# ##### #?# ##??#?? | +----------------------------------------------------+ Best States ------------- Heat Dissipation 41 Energy Generation 14 Energy Capacity 250 Matter Stores 300 Matter Capacity 300 Sight Range 16 Robot Scan Range 16 Terrain Scan Range 18 Terrain Scan Density 10 Armor Coverage 300 Resistance: KI 20 Resistance: TH 20 Resistance: EX 20 Resistance: EM 20 Resistance: I 20 Resistance: S 20 Resistance: P 20 Evasion (%) 40 Recoil Reduction 3 Item Schematics ----------------- Hcp. Storage Unit | -10/Materials | Hacked Robot Schematics ------------------ None Fabricated ------------ Nothing Alien Tech Used ----------------- None Achievements -------------- None Challenges ------------ None Game ------ Seed NeutronDecoderTreads Manual? 0 Play Time 00:37:07 Cumulative 173.2 hours Start 2019.11.09 @ 02:15:24 End 2019.11.09 @ 02:48:26 Sessions 1 Manual Loads 0 Difficulty Adventurer Special Mode None Game No. 171 Rogue 161 Adventurer 5 Explorer 0 Win Type - Total 3 Types 2/0/0/1/0/0/0 Lore% 64 Gallery% 80 Achievement% 63 Wizard Run 0 Options --------- ASCII 0 Keyboard 1 Movement Numpad Keybinds 0 Fullscreen 2 Font 18/SmallcapsGlow Map View 76x50 Tactical HUD 1 Map Filters NONE Filters NONE Steam 1 RUN: 7b7643bb-05ce-4be1-b282-853c946c7ad0